fUSD/lending_fUSD_20250618
["ID","MTS","AMOUNT","RATE_DAILY","PERIOD"]
[366369643,1750218646137,-6588.04,0.00016438,2]
[366369644,1750218646148,-490.0,0.00016438,2]
[366369645,1750218646158,-1204.02,0.00016438,2]
[366369647,1750218646168,-490.0,0.00016438,2]
[366369649,1750218646178,-1358.06,0.00016438,2]
[366369651,1750218646188,-490.0,0.00016438,2]
[366369653,1750218646198,-490.0,0.00016438,2]
[366369655,1750218646208,-2554.38,0.00016438,2]
[366369657,1750218646218,-490.0,0.00016438,2]
[366369659,1750218646230,-490.0,0.00016438,2]
[366369660,1750218646240,-490.0,0.00016438,2]
[366369661,1750218646250,-490.0,0.00016438,2]
[366369662,1750218646259,-7578.51,0.00016438,2]
[366369663,1750218646269,-490.0,0.00016438,2]
[366369664,1750218646279,-490.0,0.00016438,2]
[366369665,1750218646289,-1562.67,0.00016438,2]
[366369666,1750218646299,-1709.73,0.00016438,2]
[366369667,1750218646309,-1180.54,0.00016438,2]
[366369668,1750218646319,-490.0,0.00016438,2]
[366369669,1750218646328,-3814.55,0.00016438,2]
[366369670,1750218646338,-500.0,0.00016438,2]
[366369671,1750218646347,-767.12,0.00016438,2]
[366369672,1750218646357,-500.0,0.00016438,2]
[366369673,1750218646366,-500.0,0.00016438,2]
[366369674,1750218646376,-815.55,0.00016438,2]
[366369675,1750218646386,-2418.61,0.00016438,2]
[366369676,1750218646396,-490.0,0.00016438,2]
[366369677,1750218646406,-785.92,0.00016438,2]
[366369678,1750218646415,-2145.46,0.00016438,2]
[366369679,1750218646425,-490.0,0.00016438,2]
[366369680,1750218646435,-490.0,0.00016438,2]
[366369681,1750218646444,-1103.42,0.00016438,2]
[366369682,1750218646454,-490.0,0.00016438,2]
[366369683,1750218646464,-991.69,0.00016438,2]
[366369684,1750218646475,-490.0,0.00016438,2]
[366369685,1750218646485,-1946.78,0.00016438,2]
[366369686,1750218646494,-490.0,0.00016438,2]
[366369687,1750218646504,-490.0,0.00016438,2]
[366369688,1750218646513,-490.0,0.00016438,2]
[366369689,1750218646522,-490.0,0.00016438,2]
[366369690,1750218646530,-3805.54,0.00016438,2]
[366369691,1750218646537,-1159.64,0.00016438,2]
[366369692,1750218646546,-1341.49,0.00016438,2]
[366369693,1750218646555,-490.0,0.00016438,2]
[366369694,1750218646562,-490.0,0.00016438,2]
[366369695,1750218646571,-448.2336784,0.00016438,2]
[366369696,1750218646580,-490.0,0.00016438,2]
[366369697,1750218646590,-490.0,0.00016438,2]
[366369698,1750218646600,-1051.46,0.00016438,2]
[366369699,1750218646609,-642.37,0.00016438,2]
[366369700,1750218646619,-2493.02,0.00016438,2]
[366369701,1750218646629,-490.0,0.00016438,2]
[366369702,1750218646639,-490.0,0.00016438,2]
[366369703,1750218646648,-490.0,0.00016438,2]
[366369704,1750218646658,-1322.14,0.00016438,2]
[366369705,1750218646667,-8053.76,0.00016438,2]
[366369706,1750218646677,-490.0,0.00016438,2]
[366369707,1750218646687,-1331.44,0.00016438,2]
[366369708,1750218646697,-720.81,0.00016438,2]
[366369709,1750218646707,-490.0,0.00016438,2]
[366369710,1750218646717,-3396.77,0.00016438,2]
[366369711,1750218646727,-490.0,0.00016438,2]
[366369712,1750218646738,-490.0,0.00016438,2]
[366369713,1750218646748,-492.11102865,0.00016438,2]
[366369714,1750218646758,-490.0,0.00016438,2]
[366369715,1750218646767,-490.0,0.00016438,2]
[366369716,1750218646777,-10391.89,0.00016438,2]
[366369717,1750218646787,-490.0,0.00016438,2]
[366369718,1750218646797,-490.0,0.00016438,2]
[366369719,1750218646808,-490.0,0.00016438,2]
[366369720,1750218646818,-802.43,0.00016438,2]
[366369721,1750218646827,-490.0,0.00016438,2]
[366369722,1750218646837,-1003.5,0.00016438,2]
[366369723,1750218646846,-490.0,0.00016438,2]
[366369724,1750218646856,-515.31071063,0.00016438,2]
[366369725,1750218646865,-490.0,0.00016438,2]
[366369726,1750218646875,-557.2,0.00016438,2]
[366369727,1750218646885,-3455.54,0.00016438,2]
[366369728,1750218646896,-7382.41,0.00016438,2]
[366369729,1750218646905,-1999.18,0.00016438,2]
[366369730,1750218646915,-2641.69,0.00016438,2]
[366369731,1750218646924,-490.0,0.00016438,2]
[366369732,1750218646934,-490.0,0.00016438,2]
[366369733,1750218646943,-947.5,0.00016438,2]
[366369734,1750218646953,-880.23,0.00016438,2]
[366369735,1750218646962,-695.3,0.00016438,2]
[366369736,1750218646971,-490.0,0.00016438,2]
[366369737,1750218646981,-495.4010695,0.00016438,2]
[366369738,1750218646990,-490.0,0.00016438,2]
[366369739,1750218647000,-490.0,0.00016438,2]
[366369740,1750218647010,-1016.74,0.00016438,2]
[366369741,1750218647019,-10316.96,0.00016438,2]
[366369742,1750218647029,-490.0,0.00016438,2]
[366369743,1750218647038,-490.0,0.00016438,2]
[366369744,1750218647047,-899.08,0.00016438,2]
[366369745,1750218647057,-495.20755377,0.00016438,2]
[366369746,1750218647067,-490.0,0.00016438,2]
[366369747,1750218647205,-269.5945995,0.00016438,2]
[366369748,1750218647215,-490.0,0.00016438,2]
[366369749,1750218647224,-490.0,0.00016438,2]
[366369750,1750218647234,-1360.48,0.00016438,2]
[366369751,1750218647244,-490.0,0.00016438,2]
[366369752,1750218647255,-1281.0,0.00016438,2]
[366369753,1750218647264,-1532.53,0.00016438,2]
[366369754,1750218647274,-693.95,0.00016438,2]
[366369755,1750218647284,-235.91201081,0.00016438,2]
[366369756,1750218647294,-5511.92,0.00016438,2]
[366369757,1750218647303,-490.0,0.00016438,2]
[366369758,1750218647314,-490.0,0.00016438,2]
[366369759,1750218647324,-2083.16,0.00016438,2]
[366369760,1750218647333,-490.0,0.00016438,2]
[366369761,1750218647342,-4085.48,0.00016438,2]
[366369762,1750218647352,-1236.8,0.00016438,2]
[366369763,1750218647362,-490.0,0.00016438,2]
[366369764,1750218647371,-1322.18,0.00016438,2]
[366369765,1750218647381,-513.97,0.00016438,2]
[366369766,1750218647391,-490.0,0.00016438,2]
[366369767,1750218647401,-1284.97,0.00016438,2]
[366369768,1750218647411,-593.25,0.00016438,2]
[366369769,1750218647421,-2516.32,0.00016438,2]
[366369770,1750218647431,-4861.67,0.00016438,2]
[366369771,1750218647440,-540.25,0.00016438,2]
[366369772,1750218647450,-490.0,0.00016438,2]
[366369773,1750218647460,-22443.85,0.00016438,2]
[366369774,1750218647469,-1177.47,0.00016438,2]
[366369775,1750218647479,-490.0,0.00016438,2]
[366369776,1750218647488,-490.0,0.00016438,2]
[366369777,1750218647498,-490.0,0.00016438,2]
[366369778,1750218647508,-2307.15,0.00016438,2]
[366369779,1750218647517,-500.0,0.00016438,2]
[366369780,1750218647527,-490.0,0.00016438,2]
[366369781,1750218647537,-545.08,0.00016438,2]
[366369782,1750218647547,-1836.35,0.00016438,2]
[366369783,1750218647557,-490.0,0.00016438,2]
[366369784,1750218647566,-4971.42,0.00016438,2]
[366369785,1750218647576,-150.0,0.00016438,2]
[366369786,1750218647586,-490.0,0.00016438,2]
[366369787,1750218647595,-4971.42,0.00016438,2]
[366369788,1750218647605,-4971.42,0.00016438,2]
[366369789,1750218647615,-4971.42,0.00016438,2]
[366369790,1750218647625,-4971.42,0.00016438,2]
[366369791,1750218647635,-201.98796862,0.00016438,2]
[366369792,1750218647644,-500.0,0.00016438,2]
[366369793,1750218647654,-3266.87,0.00016438,2]
[366369794,1750218647663,-490.0,0.00016438,2]
[366369795,1750218647673,-562.76,0.00016438,2]
[366369796,1750218647683,-490.0,0.00016438,2]
[366369797,1750218647692,-150.0,0.00016438,2]
[366369798,1750218647701,-1602.28,0.00016438,2]
[366369799,1750218647711,-500.0,0.00016438,2]
[366369800,1750218647720,-953.34,0.00016438,2]
[366369801,1750218647730,-1844.69,0.00016438,2]
[366369802,1750218647740,-490.0,0.00016438,2]
[366369803,1750218647749,-490.0,0.00016438,2]
[366369804,1750218647759,-523.78,0.00016438,2]
[366369805,1750218647769,-150.98788773,0.00016438,2]
[366369806,1750218647779,-500.0,0.00016438,2]
[366369807,1750218647788,-490.0,0.00016438,2]
[366369808,1750218647798,-1310.68,0.00016438,2]
[366369809,1750218647807,-3945.85,0.00016438,2]
[366369810,1750218647817,-1563.56,0.00016438,2]
[366369811,1750218647828,-150.0,0.00016438,2]
[366369812,1750218647837,-490.0,0.00016438,2]
[366369813,1750218647847,-490.0,0.00016438,2]
[366369814,1750218647857,-151.55347305,0.00016438,2]
[366369815,1750218647866,-150.0,0.00016438,2]
[366369816,1750218647876,-490.0,0.00016438,2]
[366369817,1750218647885,-3811.09,0.00016438,2]
[366369818,1750218647895,-1660.37,0.00016438,2]
[366369819,1750218647904,-500.0,0.00016438,2]
[366369820,1750218647914,-490.0,0.00016438,2]
[366369821,1750218647924,-678.95,0.00016438,2]
[366369822,1750218647933,-500.0,0.00016438,2]
[366369823,1750218647943,-490.0,0.00016438,2]
[366369824,1750218647953,-490.0,0.00016438,2]
[366369825,1750218647963,-1408.3,0.00016438,2]
[366369826,1750218647973,-3413.49,0.00016438,2]
[366369827,1750218647983,-1767.78,0.00016438,2]
[366369828,1750218647993,-150.0,0.00016438,2]
[366369829,1750218648002,-2920.7,0.00016438,2]
[366369830,1750218648012,-1008.69230574,0.00016438,2]
[366369831,1750218648022,-594.94,0.00016438,2]
[366369832,1750218648032,-492.77893752,0.00016438,2]
[366369833,1750218648042,-490.0,0.00016438,2]
[366369834,1750218648052,-5359.83,0.00016438,2]
[366369835,1750218648062,-1074.12,0.00016438,2]
[366369836,1750218648073,-1000.0,0.00016438,2]
[366369837,1750218648086,-490.0,0.00016438,2]
[366369838,1750218648098,-1373.77,0.00016438,2]
[366369839,1750218648111,-1113.57,0.00016438,2]
[366369840,1750218648121,-1142.76,0.00016438,2]
[366369841,1750218648131,-490.0,0.00016438,2]
[366369842,1750218648141,-490.0,0.00016438,2]
[366369843,1750218648152,-490.0,0.00016438,2]
[366369844,1750218648162,-491.13374888,0.00016438,2]
[366369845,1750218648172,-490.0,0.00016438,2]
[366369846,1750218648183,-490.0,0.00016438,2]
[366369847,1750218648193,-501.06,0.00016438,2]
[366369848,1750218648207,-495.24,0.00016438,2]
[366369849,1750218648218,-492.74,0.00016438,2]
[366369850,1750218648228,-301.02,0.00016438,2]
[366369851,1750218648239,-150.22613624,0.00016438,2]
[366369852,1750218648250,-199.0,0.00016439,2]
[366369853,1750218648260,-161.04461029,0.00016442,2]
[366369854,1750218648270,-3343.002,0.00016448,2]
[366369855,1750218648281,-949.285,0.00016448,2]
[366369856,1750218648291,-807.0,0.00016448,2]
[366369857,1750218648302,-642.405,0.00016448,2]
[366369858,1750218648312,-1283.737,0.00016448,2]
[366369859,1750218648323,-560.319,0.00016448,2]
[366369860,1750218648333,-931.903,0.00016448,2]
[366369861,1750218648343,-2011.127,0.00016448,2]
[366369862,1750218648354,-596.154,0.00016448,2]
[366369863,1750218648364,-1681.502,0.00016448,2]
[366369864,1750218648374,-158.046,0.00016448,2]
[366369865,1750218648384,-7137.95,0.00016448,2]
[366369866,1750218648393,-858.798,0.00016448,2]
[366369867,1750218648403,-4126.27,0.00016448,2]
[366369868,1750218648414,-1814.86768654,0.00016452,2]
[366369869,1750218648425,-161.04461029,0.00016459,2]
[366369870,1750218648435,-195.15584014,0.0001646,2]
[366369871,1750218648445,-217.94031613,0.00016465,2]
[366369872,1750218648455,-202.79560054,0.00016465,2]
[366369873,1750218648467,-150.0,0.00016465,2]
[366369874,1750218648476,-500.0,0.00016465,2]
[366369875,1750218648486,-150.0,0.00016465,2]
[366369876,1750218648496,-150.0,0.00016465,2]
[366369877,1750218648506,-150.0,0.00016465,2]
[366369878,1750218648517,-150.0,0.00016465,2]
[366369879,1750218648527,-500.0,0.00016465,2]
[366369880,1750218648537,-500.0,0.00016465,2]
[366369881,1750218648548,-156.54496774,0.00016465,2]
[366369882,1750218648558,-150.49012242,0.00016465,2]
[366369883,1750218648568,-163.10842848,0.00016465,2]
[366369884,1750218648578,-500.0,0.00016465,2]
[366369885,1750218648588,-500.0,0.00016465,2]
[366369886,1750218648598,-236.30738567,0.00016465,2]
[366369887,1750218648608,-500.0,0.00016465,2]
[366369888,1750218648618,-150.42489893,0.00016465,2]
[366369889,1750218648629,-500.0,0.00016465,2]
[366369890,1750218648640,-500.0,0.00016465,2]
[366369891,1750218648650,-152.6954206,0.00016465,2]
[366369892,1750218648660,-222.60531671,0.00016465,2]
[366369893,1750218648670,-500.0,0.00016465,2]
[366369894,1750218648680,-500.0,0.00016465,2]
[366369895,1750218648690,-277.49004754,0.00016465,2]
[366369896,1750218648700,-156.50813011,0.00016468,2]
[366369897,1750218648711,-500.8318122,0.00016473,2]
[366369898,1750218648721,-501.50722289,0.00016473,2]
[366369899,1750218648731,-500.0,0.00016473,2]
[366369900,1750218648742,-501.44999098,0.00016473,2]
[366369901,1750218648752,-160.10190178,0.00016473,2]
[366369902,1750218648762,-160.10644752,0.00016473,2]
[366369903,1750218648772,-500.0,0.00016473,2]
[366369904,1750218648782,-160.10125592,0.00016473,2]
[366369905,1750218648793,-500.0,0.00016473,2]
[366369906,1750218648803,-506.33715115,0.00016473,2]
[366369907,1750218648814,-500.0,0.00016473,2]
[366369908,1750218648824,-163.15375829,0.00016473,2]
[366369909,1750218648834,-500.0,0.00016473,2]
[366369910,1750218648843,-501.09278441,0.00016473,2]
[366369911,1750218648853,-500.0,0.00016473,2]
[366369912,1750218648864,-500.0,0.00016473,2]
[366369913,1750218648874,-500.0,0.00016473,2]
[366369914,1750218648885,-500.0,0.00016473,2]
[366369915,1750218648894,-500.0,0.00016473,2]
[366369916,1750218648904,-500.0,0.00016473,2]
[366369917,1750218648914,-161.04461029,0.00016477,2]
[366369918,1750218648925,-150.0,0.00016479,2]
[366369919,1750218648935,-1225.05742332,0.00016484,2]
[366369920,1750218648945,-833.92080167,0.00016486,2]
[366369921,1750218648955,-151.84375591,0.00016493,2]
[366369922,1750218648965,-500.0,0.00016493,2]
[366369923,1750218648975,-150.0,0.00016493,2]
[366369924,1750218648985,-150.0,0.00016493,2]
[366369925,1750218648995,-150.0,0.00016493,2]
[366369926,1750218649006,-153.05246388,0.00016493,2]
[366369927,1750218649016,-500.0,0.00016493,2]
[366369928,1750218649026,-504.0375279,0.00016493,2]
[366369929,1750218649036,-500.0,0.00016493,2]
[366369930,1750218649048,-155.98870104,0.00016493,2]
[366369931,1750218649059,-306.0048695,0.00016493,2]
[366369932,1750218649070,-500.0,0.00016493,2]
[366369933,1750218649081,-500.0,0.00016493,2]
[366369934,1750218649091,-500.0,0.00016493,2]
[366369935,1750218649103,-500.0,0.00016493,2]
[366369936,1750218649114,-199.0,0.00016494,2]
[366369937,1750218649124,-161.04461029,0.00016494,2]
[366369938,1750218649134,-199.0,0.00016498,2]
[366369939,1750218649144,-150.0,0.00016504,2]
[366369940,1750218649155,-161.04461029,0.00016511,2]
[366369941,1750218649165,-500.0,0.0001652,2]
[366369942,1750218649175,-207.07030337,0.0001652,2]
[366369943,1750218649186,-152.72139541,0.0001652,2]
[366369944,1750218649196,-150.0,0.0001652,2]
[366369945,1750218649206,-500.0,0.0001652,2]
[366369946,1750218649216,-500.0,0.0001652,2]
[366369947,1750218649227,-500.0,0.0001652,2]
[366369948,1750218649237,-350.0,0.0001652,2]
[366369949,1750218649247,-405.4249709,0.0001652,2]
[366369950,1750218649258,-153.84543322,0.0001652,2]
[366369951,1750218649268,-870.0,0.00016527,2]
[366369952,1750218649278,-161.04461029,0.00016528,2]
[366369953,1750218649288,-156.50813011,0.00016532,2]
[366369954,1750218649299,-150.0,0.00016534,2]
[366369955,1750218649309,-269.94029841,0.00016539,2]
[366369956,1750218649320,-161.04461029,0.00016546,2]
[366369957,1750218649330,-500.0,0.00016548,2]
[366369958,1750218649340,-256.17533536,0.00016548,2]
[366369959,1750218649349,-500.0,0.00016548,2]
[366369960,1750218649361,-500.0,0.00016548,2]
[366369961,1750218649371,-500.0,0.00016548,2]
[366369962,1750218649380,-1225.05742332,0.00016557,2]
[366369963,1750218649390,-150.0,0.00016562,2]
[366369964,1750218649399,-161.04461029,0.00016563,2]
[366369965,1750218649719,-150.0,0.00016564,2]
[366369966,1750218649736,-151.0,0.00016566,2]
[366369967,1750218649746,-150.0,0.00016574,2]
[366369968,1750218649757,-2351.0,0.00016574,2]
[366369969,1750218649767,-528.29859729,0.00016575,2]
[366369970,1750218649777,-500.0,0.00016575,2]
[366369971,1750218649787,-228.54030024,0.00016575,2]
[366369972,1750218649797,-162.72468752,0.00016575,2]
[366369973,1750218649808,-161.04461029,0.0001658,2]
[366369974,1750218649817,-150.0,0.00016586,2]
[366369975,1750218649827,-156.50813011,0.00016597,2]
[366369976,1750218649837,-161.04461029,0.00016598,2]
[366369977,1750218649847,-669.62,0.000166,2]
[366369978,1750218649857,-164.66,0.00016601,2]
[366369979,1750218649867,-500.0,0.00016601,2]
[366369980,1750218649876,-500.0,0.00016601,2]
[366369981,1750218649885,-500.0,0.00016601,2]
[366369982,1750218649895,-500.0,0.00016601,2]
[366369983,1750218649905,-2234.12,0.00016601,2]
[366369984,1750218649915,-2234.12,0.00016601,2]
[366369985,1750218649926,-2234.12,0.00016601,2]
[366369986,1750218649935,-500.0,0.00016601,2]
[366369987,1750218649945,-521.88496559,0.00016601,2]
[366369988,1750218649956,-151.0,0.00016601,2]
[366369989,1750218649967,-151.0,0.00016601,2]
[366369990,1750218649977,-151.0,0.00016601,2]
[366369991,1750218649992,-151.0,0.00016601,2]
[366369992,1750218650002,-4971.42,0.00016601,2]
[366369993,1750218650012,-4971.42,0.00016601,2]
[366369994,1750218650022,-4971.42,0.00016601,2]
[366369995,1750218650032,-4971.42,0.00016601,2]
[366369996,1750218650042,-151.0,0.00016601,2]
[366369997,1750218650052,-152.357431,0.00016601,2]
[366369998,1750218650062,-300.0,0.00016601,2]
[366369999,1750218650072,-307.04182332,0.00016601,2]
[366370000,1750218650082,-300.0,0.00016601,2]
[366370001,1750218650092,-354.11280462,0.00016601,2]
[366370002,1750218650105,-151.0,0.00016602,2]
[366370003,1750218650115,-151.0,0.00016602,2]
[366370004,1750218650124,-151.0,0.00016602,2]
[366370005,1750218650134,-151.0,0.00016602,2]
[366370006,1750218650147,-151.0,0.00016602,2]
[366370007,1750218650157,-490.0,0.00016602,2]
[366370008,1750218650168,-151.0,0.00016602,2]
[366370009,1750218650179,-490.0,0.00016602,2]
[366370010,1750218650189,-539.36,0.00016602,2]
[366370011,1750218650199,-490.0,0.00016602,2]
[366370012,1750218650208,-490.0,0.00016602,2]
[366370013,1750218650218,-261.18966819,0.00016602,2]
[366370014,1750218650228,-490.0,0.00016602,2]
[366370015,1750218650238,-1380.2,0.00016602,2]
[366370016,1750218650249,-587.04,0.00016602,2]
[366370017,1750218650259,-151.0,0.00016602,2]
[366370018,1750218650270,-151.520417,0.00016602,2]
[366370019,1750218650280,-1207.62,0.00016602,2]
[366370020,1750218650290,-490.0,0.00016602,2]
[366370021,1750218650300,-151.42246,0.00016602,2]
[366370022,1750218650311,-490.0,0.00016602,2]
[366370023,1750218650321,-490.0,0.00016602,2]
[366370024,1750218650331,-490.0,0.00016602,2]
[366370025,1750218650342,-588.92,0.00016602,2]
[366370026,1750218650352,-490.0,0.00016602,2]
[366370027,1750218650363,-151.0,0.00016602,2]
[366370028,1750218650373,-153.153755,0.00016602,2]
[366370029,1750218650384,-490.0,0.00016602,2]
[366370030,1750218650395,-490.0,0.00016602,2]
[366370031,1750218650404,-176.13037013,0.00016602,2]
[366370032,1750218650414,-152.559455,0.00016602,2]
[366370033,1750218650424,-151.0,0.00016602,2]
[366370034,1750218650434,-153.953065,0.00016602,2]
[366370035,1750218650445,-490.0,0.00016602,2]
[366370036,1750218650455,-490.0,0.00016602,2]
[366370037,1750218650464,-583.85,0.00016602,2]
[366370038,1750218650475,-490.0,0.00016602,2]
[366370039,1750218650486,-508.82,0.00016602,2]
[366370040,1750218650495,-525.0,0.00016602,2]
[366370041,1750218650506,-151.0,0.00016602,2]
[366370042,1750218650516,-490.0,0.00016602,2]
[366370043,1750218650525,-490.0,0.00016602,2]
[366370044,1750218650535,-291.38203482,0.00016602,2]
[366370045,1750218650547,-490.0,0.00016602,2]
[366370046,1750218650557,-490.0,0.00016602,2]
[366370047,1750218650569,-607.59,0.00016602,2]
[366370048,1750218650580,-490.0,0.00016602,2]
[366370049,1750218650590,-490.0,0.00016602,2]
[366370050,1750218650600,-801.1,0.00016602,2]
[366370051,1750218650610,-168.225736,0.00016602,2]
[366370052,1750218650620,-348.64091862,0.00016602,2]
[366370053,1750218650630,-490.0,0.00016602,2]
[366370054,1750218650640,-765.65,0.00016602,2]
[366370055,1750218650650,-490.0,0.00016602,2]
[366370056,1750218650659,-490.0,0.00016602,2]
[366370057,1750218650669,-490.0,0.00016602,2]
[366370058,1750218650679,-571.41,0.00016602,2]
[366370059,1750218650689,-298.17435014,0.00016602,2]
[366370060,1750218650701,-490.0,0.00016602,2]
[366370061,1750218650713,-490.0,0.00016602,2]
[366370062,1750218650724,-696.17,0.00016602,2]
[366370063,1750218650733,-490.0,0.00016602,2]
[366370064,1750218650743,-490.0,0.00016602,2]
[366370065,1750218650754,-490.0,0.00016602,2]
[366370066,1750218650764,-490.0,0.00016602,2]
[366370067,1750218650774,-490.0,0.00016602,2]
[366370068,1750218650784,-490.0,0.00016602,2]
[366370069,1750218650794,-490.0,0.00016602,2]
[366370070,1750218650804,-490.0,0.00016602,2]
[366370071,1750218650816,-490.0,0.00016602,2]
[366370072,1750218650826,-176.442679,0.00016602,2]
[366370073,1750218650836,-202.11632795,0.00016602,2]
[366370074,1750218650847,-490.0,0.00016602,2]
[366370075,1750218650857,-490.0,0.00016602,2]
[366370076,1750218650867,-490.0,0.00016602,2]
[366370077,1750218650877,-490.0,0.00016602,2]
[366370078,1750218650887,-355.01971392,0.00016602,2]
[366370079,1750218650896,-211.115972,0.00016602,2]
[366370080,1750218650906,-211.115972,0.00016602,2]
[366370081,1750218650916,-490.0,0.00016602,2]
[366370082,1750218650926,-512.34,0.00016602,2]
[366370083,1750218650936,-490.0,0.00016602,2]
[366370084,1750218650946,-490.0,0.00016602,2]
[366370085,1750218650956,-519.54,0.00016602,2]
[366370086,1750218650966,-490.0,0.00016602,2]
[366370087,1750218650976,-490.0,0.00016602,2]
[366370088,1750218650986,-490.0,0.00016602,2]
[366370089,1750218650995,-490.0,0.00016602,2]
[366370090,1750218651005,-562.45,0.00016602,2]
[366370091,1750218651015,-490.0,0.00016602,2]
[366370092,1750218651024,-490.0,0.00016602,2]
[366370093,1750218651034,-490.0,0.00016602,2]
[366370094,1750218651044,-490.0,0.00016602,2]
[366370095,1750218651054,-490.0,0.00016602,2]
[366370096,1750218651064,-490.0,0.00016602,2]
[366370097,1750218651074,-710.93,0.00016602,2]
[366370098,1750218651084,-490.0,0.00016602,2]
[366370099,1750218651094,-686.35,0.00016602,2]
[366370100,1750218651107,-490.0,0.00016602,2]
[366370101,1750218651117,-490.0,0.00016602,2]
[366370102,1750218651128,-490.0,0.00016602,2]
[366370103,1750218651138,-490.0,0.00016602,2]
[366370104,1750218651148,-490.0,0.00016602,2]
[366370105,1750218651163,-490.0,0.00016602,2]
[366370106,1750218651173,-576.58,0.00016602,2]
[366370107,1750218651183,-490.0,0.00016602,2]
[366370108,1750218651194,-490.0,0.00016602,2]
[366370109,1750218651203,-153.356555,0.00016602,2]
[366370110,1750218651214,-151.0,0.00016602,2]
[366370111,1750218651223,-151.0,0.00016602,2]
[366370112,1750218651233,-490.0,0.00016602,2]
[366370113,1750218651243,-499.28400562,0.00016602,2]
[366370114,1750218651253,-866.913953,0.00016602,2]
[366370115,1750218651262,-628.4,0.00016602,2]
[366370116,1750218651273,-490.0,0.00016602,2]
[366370117,1750218651283,-749.85,0.00016602,2]
[366370118,1750218651294,-694.24,0.00016602,2]
[366370119,1750218651303,-490.0,0.00016602,2]
[366370120,1750218651314,-490.0,0.00016602,2]
[366370121,1750218651324,-617.04,0.00016602,2]
[366370122,1750218651334,-490.0,0.00016602,2]
[366370123,1750218651344,-2563.17997,0.00016602,2]
[366370124,1750218651354,-490.0,0.00016602,2]
[366370125,1750218651364,-490.0,0.00016602,2]
[366370126,1750218651374,-490.0,0.00016602,2]
[366370127,1750218651383,-561.79,0.00016602,2]
[366370128,1750218651393,-490.0,0.00016602,2]
[366370129,1750218651403,-490.0,0.00016602,2]
[366370130,1750218651412,-490.0,0.00016602,2]
[366370131,1750218651422,-490.0,0.00016602,2]
[366370132,1750218651432,-151.0,0.00016602,2]
[366370133,1750218651441,-151.0,0.00016602,2]
[366370134,1750218651451,-552.49,0.00016602,2]
[366370135,1750218651461,-1094.86,0.00016602,2]
[366370136,1750218651471,-151.0,0.00016602,2]
[366370137,1750218651481,-256.77098,0.00016602,2]
[366370138,1750218651491,-490.0,0.00016602,2]
[366370139,1750218651500,-151.0,0.00016602,2]
[366370140,1750218651509,-151.0,0.00016602,2]
[366370141,1750218651518,-490.0,0.00016602,2]
[366370142,1750218651527,-151.0,0.00016602,2]
[366370143,1750218651537,-151.0,0.00016602,2]
[366370144,1750218651546,-151.0,0.00016602,2]
[366370145,1750218651556,-151.0,0.00016602,2]
[366370146,1750218651565,-151.0,0.00016602,2]
[366370147,1750218651575,-490.0,0.00016602,2]
[366370148,1750218651585,-490.0,0.00016602,2]
[366370149,1750218651594,-490.0,0.00016602,2]